bitfinex-derivatives/quotes_ETHF0:USTF0_20250831
["timestamp","ask_amount","ask_price","bid_price","bid_amount"]
[1756638291950,0.6812052,4448.8,4448.7,0.226]
[1756638292341,0.3029,4448.7,4448.6,3.5219]
[1756638292545,0.6812052,4448.7,4448.6,3.7479]
[1756638293954,0.6812052,4448.7,4448.6,3.5219]
[1756638294145,0.6812052,4448.7,4448.6,3.7479]
[1756638294341,0.6812052,4448.7,4448.6,3.5219]
[1756638294647,0.6812052,4448.7,4448.6,3.7479]
[1756638296152,0.18626616,4448.7,4448.6,3.6271]
[1756638296656,0.18626616,4448.7,4448.6,3.7479]
[1756638296952,0.18625766,4448.7,4448.6,3.7479]
[1756638297447,0.68115766,4448.7,4448.6,3.7479]
[1756638299854,0.48915766,4448.7,4448.6,3.7479]
[1756638300055,0.18625766,4448.7,4448.6,3.7479]
[1756638301055,0.3029,4449.8,4448.6,9.86857934]
[1756638301255,0.3029,4449.8,4449.2,3.2078]
[1756638301455,3.2078,4450.1,4449.3,0.227]
[1756638301655,0.3029,4450.0,4449.3,0.227]
[1756638302757,0.4949,4450.0,4449.3,0.227]
[1756638303859,3.2078,4450.1,4449.2,3.2078]
[1756638304059,0.4949,4449.5,4449.4,0.227]
[1756638304457,0.192,4449.5,4449.2,5.22448934]
[1756638304656,0.4949,4449.5,4449.4,0.227]
[1756638305161,0.4949,4449.3,4449.2,5.22448934]
[1756638305361,0.4949,4449.3,4449.2,3.4348]
[1756638305657,0.4949,4449.3,4449.2,3.2078]
[1756638305967,0.4949,4449.3,4449.2,3.4348]
[1756638306766,0.4949,4449.3,4449.2,3.2078]
[1756638306961,0.4949,4449.3,4449.2,3.4348]
[1756638307265,0.4949,4449.3,4449.2,0.227]
[1756638310759,0.282,4449.2,4448.7,3.2078]
[1756638310959,0.282,4450.0,4448.8,0.227]
[1756638311164,0.4695,4448.9,4448.8,0.227]
[1756638311857,3.2078,4450.1,4448.8,0.227]
[1756638312165,0.282,4450.0,4448.8,2.24368934]
[1756638312663,0.282,4450.0,4448.9,2.01668934]
[1756638312862,0.4695,4450.0,4448.9,2.24143934]
[1756638313057,0.4695,4450.0,4449.0,2.01668934]
[1756638313255,0.4695,4450.0,4449.2,2.01668934]
[1756638314265,0.4695,4450.0,4449.1,2.24368934]
[1756638314765,3.2078,4450.1,4449.1,2.24368934]
[1756638315166,0.282,4450.0,4449.1,2.24368934]
[1756638316066,3.2078,4450.1,4449.1,2.24368934]
[1756638316256,0.282,4450.0,4449.1,2.24368934]
[1756638316459,3.2078,4450.1,4449.1,2.24368934]
[1756638316664,0.282,4450.0,4449.1,2.24368934]
[1756638316856,3.2078,4450.1,4449.1,2.24368934]
[1756638317057,0.282,4450.0,4449.1,2.24368934]
[1756638317562,0.282,4450.0,4449.2,5.44922934]
[1756638317760,0.282,4450.5,4449.2,5.44922934]
[1756638317957,0.282,4450.5,4449.3,0.22471999]
[1756638318362,3.2078,4450.6,4449.7,3.2078]
[1756638318567,0.282,4450.5,4449.8,0.227]
[1756638318768,0.1875,4449.9,4449.8,0.227]
[1756638319068,0.282,4449.9,4449.8,0.227]
[1756638319468,0.282,4450.5,4449.8,0.227]
[1756638319664,0.4695,4450.5,4449.8,0.227]
[1756638326068,0.282,4450.5,4449.8,0.227]
[1756638327273,3.2078,4450.6,4449.8,2.46839934]
[1756638327473,0.4695,4450.8,4450.2,3.2078]
[1756638327679,0.1875,4450.7,4450.3,0.227]
[1756638327970,0.282,4451.6,4450.3,0.227]
[1756638328175,0.50667,4451.6,4450.3,0.227]
[1756638328376,0.282,4451.6,4450.3,0.227]
[1756638328768,0.1875,4450.6,4450.5,3.2078]
[1756638328967,0.4695,4450.6,4450.5,3.2078]
[1756638329165,3.2078,4451.7,4450.5,3.2078]
[1756638329373,0.4695,4450.6,4450.5,3.2078]
[1756638329569,0.4695,4450.6,4450.5,3.4348]
[1756638331173,0.282,4450.6,4450.5,3.61393385]
[1756638331478,3.2078,4451.7,4450.5,3.61393385]
[1756638332073,0.1875,4450.6,4450.5,3.38693385]
[1756638332273,0.4695,4450.6,4450.5,3.61393385]
[1756638334768,0.4695,4450.6,4450.5,3.38693385]
[1756638334974,0.4695,4450.6,4450.5,3.4348]
[1756638337978,0.4695,4450.6,4450.5,3.2078]
[1756638338179,0.4695,4450.6,4450.5,3.4348]
[1756638338380,0.1875,4450.6,4450.0,3.2078]
[1756638338586,0.4972,4450.2,4450.1,0.227]
[1756638340385,0.4972,4450.1,4450.0,3.2078]
[1756638340580,0.4972,4450.1,4450.0,3.4348]
[1756638341582,0.4972,4450.1,4450.0,3.2078]
[1756638342085,0.4972,4450.1,4450.0,3.4348]
[1756638343386,0.1999,4449.7,4449.6,2.01668934]
[1756638343686,0.1999,4449.7,4449.6,0.227]
[1756638343988,0.4972,4449.7,4449.6,0.227]
[1756638345383,0.1999,4449.7,4449.5,35.5738]
[1756638345583,0.2973,4449.6,4449.5,35.5738]
[1756638345783,0.2973,4449.6,4449.5,35.8008]
[1756638348298,3.2078,4450.4,4449.5,35.8008]
[1756638348589,3.2078,4451.0,4449.5,35.8008]
[1756638348787,0.2973,4450.8,4449.5,35.8008]
[1756638348985,3.2078,4450.5,4449.5,35.8008]
[1756638349191,0.2973,4450.4,4449.5,35.8008]
[1756638349791,3.2078,4450.5,4449.5,35.8008]
[1756638350091,0.2973,4450.4,4449.5,35.8008]
[1756638350488,3.2078,4450.5,4449.5,35.8008]
[1756638350694,0.2973,4450.4,4449.5,35.8008]
[1756638350892,3.2078,4450.5,4449.5,35.8008]
[1756638351290,0.2973,4450.4,4449.5,35.8008]
[1756638351491,3.2078,4450.5,4449.5,35.8008]
[1756638351893,0.2973,4450.4,4449.5,35.8008]
[1756638352589,3.2078,4450.5,4449.5,35.8008]
[1756638352794,0.2973,4450.4,4449.5,35.8008]
[1756638353092,3.2078,4450.5,4449.5,35.8008]
[1756638353293,0.2973,4450.4,4449.5,35.8008]
[1756638353790,0.2973,4450.4,4449.5,3.2078]
[1756638354093,0.2973,4450.4,4449.6,0.227]
[1756638356287,0.4972,4449.7,4449.6,0.227]
[1756638359095,0.2973,4449.6,4449.5,3.2078]
[1756638359302,0.4972,4449.1,4449.0,3.2078]
[1756638359496,0.4972,4449.1,4449.0,3.4348]
[1756638360898,0.4972,4449.1,4449.0,3.2078]
[1756638361106,0.1999,4448.9,4448.8,32.362]
[1756638361298,0.4972,4448.9,4448.8,32.589]
[1756638362698,0.4972,4448.9,4448.8,32.362]
[1756638362904,0.4972,4448.9,4448.8,32.589]
[1756638363399,0.1999,4448.9,4448.5,3.2078]
[1756638363603,0.4972,4448.6,4448.5,3.2078]
[1756638363803,0.4972,4448.6,4448.5,3.4348]
[1756638366006,3.705,4448.6,4448.5,0.227]
[1756638366200,0.2973,4448.5,4447.9,3.2078]
[1756638366405,0.4972,4448.0,4447.9,3.2078]
[1756638366704,0.4972,4448.0,4447.9,3.4348]
[1756638366905,0.4972,4448.0,4447.9,3.2078]
[1756638367106,0.4972,4448.0,4447.9,3.4348]
[1756638367306,0.2973,4448.0,4447.9,3.4348]
[1756638368006,0.4972,4448.0,4447.9,3.4348]
[1756638372011,0.4972,4448.0,4447.9,0.227]
[1756638372217,0.2974,4447.9,4447.4,3.2078]
[1756638372515,0.2974,4448.5,4447.5,0.227]
[1756638372706,3.2078,4448.0,4447.5,0.227]
[1756638372912,0.4902,4447.6,4447.4,3.2078]
[1756638373112,0.1928,4447.6,4447.4,3.2078]
[1756638373311,0.1928,4447.6,4447.5,0.227]
[1756638373710,0.4902,4447.6,4447.5,0.227]
[1756638374505,3.2078,4448.0,4447.3,32.366]
[1756638374506,0.1928,4447.5,4447.3,32.366]
[1756638374711,0.2974,4447.4,4447.3,32.366]
[1756638374906,0.2974,4447.4,4447.3,32.593]
[1756638376104,0.2974,4447.4,4447.3,32.366]
[1756638376312,0.2974,4447.4,4447.3,32.593]
[1756638377109,0.2974,4447.4,4447.3,32.366]
[1756638377314,0.2974,4447.4,4447.3,32.593]
[1756638380410,0.2974,4447.4,4447.3,32.366]
[1756638380614,0.2974,4447.4,4447.3,32.593]
[1756638384423,0.2974,4447.4,4447.3,32.366]
[1756638384625,0.2974,4447.4,4447.3,32.593]
[1756638385120,0.2974,4447.4,4447.3,0.227]
[1756638385323,0.1928,4447.4,4447.3,0.227]
[1756638385522,3.698,4447.4,4447.3,0.227]
[1756638386421,0.2974,4448.1,4447.3,0.227]
[1756638387018,0.22484,4448.0,4447.3,0.227]
[1756638387219,0.2974,4448.1,4447.3,0.227]
[1756638387618,0.2974,4447.9,4447.3,0.227]
[1756638388220,3.2078,4448.2,4447.3,0.227]
[1756638388420,3.2078,4448.2,4447.5,3.2078]
[1756638388621,3.2078,4448.2,4447.6,0.227]
[1756638390225,3.4006,4448.2,4447.5,3.2078]
[1756638390426,0.4902,4448.1,4447.6,0.227]
[1756638390723,0.1928,4447.6,4447.5,3.2078]
[1756638391026,0.4902,4447.6,4447.5,3.4348]
[1756638391323,0.1928,4447.6,4447.5,0.227]
[1756638391525,0.4902,4447.6,4447.5,0.227]
[1756638392720,0.1928,4447.6,4446.7,3.2078]
[1756638392926,0.2974,4447.5,4446.8,0.227]
[1756638394717,0.1928,4446.9,4446.8,0.227]
[1756638395025,0.4902,4446.9,4446.8,0.227]
[1756638395220,0.2974,4446.9,4446.8,0.227]
[1756638395829,3.2078,4447.7,4446.8,0.227]
[1756638396127,0.4902,4447.0,4446.9,0.227]
[1756638396422,0.4902,4447.0,4446.7,3.2078]
[1756638396627,0.2974,4446.9,4446.8,0.227]
[1756638396927,0.1928,4446.9,4446.8,0.227]
[1756638397630,0.1928,4446.9,4446.7,3.2078]
[1756638397828,0.1928,4446.9,4446.8,0.227]
[1756638398128,0.4838,4446.9,4446.8,0.227]
[1756638399630,0.4747,4446.8,4446.7,3.2078]
[1756638399926,0.4747,4446.8,4446.7,3.4348]
[1756638401130,0.4747,4446.8,4446.7,3.2078]
[1756638401335,0.4747,4446.8,4446.7,3.4348]
[1756638402431,0.291,4446.8,4446.7,3.4348]
[1756638403237,0.4747,4446.8,4446.7,3.4348]
[1756638406038,0.291,4446.8,4446.7,3.4348]
[1756638407140,0.291,4447.6,4446.7,3.4348]
[1756638407332,3.2078,4447.7,4446.7,3.4348]
[1756638407534,0.4747,4447.6,4446.7,3.4348]
[1756638407836,0.4747,4447.5,4446.7,3.4348]
[1756638408837,0.291,4448.2,4446.8,0.22487]
[1756638409135,0.291,4448.2,4446.9,0.227]
[1756638409340,3.2078,4448.3,4447.2,3.2078]
[1756638409541,0.291,4448.2,4447.3,0.227]
[1756638409745,0.4747,4448.2,4447.3,0.227]
[1756638412138,0.4747,4448.2,4447.3,2.24368934]
[1756638412340,0.1837,4448.2,4447.3,2.24368934]
[1756638412534,0.4747,4448.1,4447.3,2.24368934]
[1756638412836,3.2078,4448.3,4447.3,2.24368934]
[1756638413037,3.2078,4448.3,4447.4,2.24151934]
[1756638413541,3.2078,4448.3,4447.8,2.01668934]
[1756638413835,0.291,4449.0,4447.9,3.4348]
[1756638414039,0.291,4449.0,4448.1,2.01668934]
[1756638414342,3.2078,4449.1,4448.2,0.227]
[1756638414840,3.6825,4449.1,4448.2,0.227]
[1756638416636,3.6825,4449.1,4448.2,0.45179]
[1756638416840,3.2078,4449.1,4448.5,3.2078]
[1756638417039,0.291,4449.0,4448.6,0.227]
[1756638418139,3.2078,4450.0,4448.6,0.227]
[1756638418441,0.291,4449.9,4448.6,0.227]
[1756638419346,0.291,4449.9,4448.5,3.2078]
[1756638419548,0.291,4449.9,4448.6,0.227]
[1756638420449,0.291,4449.9,4449.0,3.2078]
[1756638420640,0.291,4449.9,4449.1,0.227]
[1756638421343,0.4747,4449.2,4449.1,0.227]
[1756638421752,0.291,4449.2,4449.1,0.227]
[1756638422250,0.291,4449.9,4449.1,0.227]
[1756638422845,0.291,4449.8,4449.1,0.40418943]
[1756638423045,0.4747,4449.8,4449.1,0.40418943]
[1756638423245,3.2078,4450.5,4449.1,0.40418943]
[1756638423246,0.291,4449.7,4449.5,3.2078]
[1756638423542,0.4747,4449.7,4449.6,0.227]
[1756638425950,3.2078,4450.5,4449.6,0.227]
[1756638426147,0.1837,4449.6,4449.5,3.2078]
[1756638426352,0.4747,4449.6,4449.5,3.4348]
[1756638426549,0.4747,4449.6,4449.5,3.2078]
[1756638426845,0.4747,4449.6,4449.5,3.4348]
[1756638431952,0.291,4449.6,4449.5,3.4348]
[1756638432152,0.4815,4450.4,4449.5,3.4348]
[1756638432957,0.4815,4450.3,4449.5,3.4348]
[1756638434058,0.2854,4450.3,4449.5,4.8688]
[1756638434258,0.2854,4450.3,4449.6,0.22471999]
[1756638434459,3.2078,4450.5,4449.6,0.22471999]
[1756638434660,0.2854,4450.7,4450.1,3.2078]
[1756638434861,0.4815,4450.6,4450.2,0.227]
[1756638435060,3.2078,4451.0,4450.2,0.227]
[1756638435360,0.2854,4450.9,4450.2,0.227]
[1756638437156,0.4815,4450.9,4450.2,0.227]
[1756638437359,0.4815,4450.9,4450.8,3.2078]
[1756638437561,0.4815,4450.9,4450.8,3.4348]
[1756638439559,0.2854,4450.9,4450.8,3.4348]
[1756638439758,0.4815,4450.9,4450.8,3.4348]
[1756638447961,0.2854,4450.9,4450.8,3.4348]
[1756638448162,0.2854,4451.4,4450.8,3.4348]
[1756638448366,3.2078,4451.5,4450.8,3.4348]
[1756638448568,0.2854,4451.4,4450.8,3.4348]
[1756638448863,3.2078,4451.5,4450.8,3.4348]
[1756638449168,0.2854,4451.4,4450.8,3.4348]
[1756638449566,0.4815,4450.9,4450.8,3.4348]
[1756638454170,0.2854,4450.9,4450.8,3.4348]
[1756638454570,0.4815,4450.9,4450.8,3.4348]
[1756638455673,0.4815,4450.9,4450.8,3.2078]
[1756638455874,0.4815,4450.9,4450.8,3.4348]
[1756638457076,0.4815,4450.9,4450.8,3.2078]
[1756638457379,0.4815,4450.9,4450.8,3.4348]
[1756638458877,0.4815,4450.9,4450.8,3.2078]
[1756638459080,0.4815,4450.9,4450.8,3.4348]
[1756638465087,0.2854,4450.9,4450.8,3.4348]
[1756638465281,0.4874,4450.9,4450.8,3.4348]
[1756638466887,0.4874,4450.9,4450.8,3.2078]
[1756638467387,0.4874,4450.9,4450.8,3.4348]
[1756638469486,0.2854,4450.9,4450.8,3.4348]
[1756638472089,0.4874,4450.9,4450.8,3.4348]
[1756638474193,0.2854,4450.9,4450.8,3.4348]
[1756638474391,3.2078,4452.1,4450.8,7.4348]
[1756638474594,0.2758,4451.8,4451.1,2.01668934]
[1756638474794,0.4778,4451.7,4451.2,0.227]
[1756638475397,0.2758,4451.6,4451.0,2.01668934]
[1756638475597,0.4778,4451.2,4451.1,0.227]
[1756638477495,0.202,4451.2,4451.0,2.01668934]
[1756638477696,0.4778,4451.2,4451.1,0.227]
[1756638478793,0.4778,4451.2,4451.0,2.01668934]
[1756638479000,0.202,4451.2,4451.1,0.227]
[1756638479498,0.4778,4451.2,4451.1,0.227]
[1756638480605,0.202,4451.2,4451.0,2.01668934]
[1756638480897,0.4778,4451.1,4451.0,2.01668934]
[1756638481096,0.4778,4451.1,4451.0,2.24368934]
[1756638481492,0.4778,4451.1,4451.0,0.227]
[1756638482493,0.4778,4451.1,4450.9,2.01668934]
[1756638482700,0.202,4451.0,4450.4,2.01668934]
[1756638482900,0.4778,4450.6,4450.5,0.227]
[1756638484605,0.2758,4450.6,4450.5,2.24368934]
[1756638490108,3.2078,4452.0,4450.5,2.24368934]
[1756638490309,0.2994,4451.8,4450.5,2.24368934]
[1756638490510,0.22466,4451.9,4450.5,2.24368934]
[1756638490709,0.22466,4451.8,4450.5,2.24368934]
[1756638490909,0.52406,4451.9,4450.5,2.24368934]
[1756638491111,0.22466,4451.9,4450.5,2.24368934]
[1756638491307,0.2994,4451.7,4450.5,2.24368934]
[1756638491507,0.22466,4451.9,4450.5,2.24368934]
[1756638492406,0.22466,4451.8,4450.5,2.24368934]
[1756638492604,0.22466,4451.9,4450.5,2.24368934]
[1756638492807,0.2994,4451.8,4450.5,2.24368934]
[1756638493007,0.22466,4451.8,4450.5,2.24368934]
[1756638493310,0.2994,4451.7,4450.5,2.24368934]
[1756638493508,0.2994,4451.6,4450.5,2.24368934]
[1756638493709,3.2078,4452.0,4450.5,2.24368934]
[1756638493910,0.2994,4451.8,4450.5,2.24368934]
[1756638494309,0.2994,4451.9,4450.5,2.24368934]
[1756638494611,0.2994,4451.7,4450.6,0.227]
[1756638495005,0.22466,4451.6,4450.6,0.227]
[1756638495205,0.2994,4451.9,4450.6,0.227]
[1756638495508,0.52405001,4451.9,4450.6,0.227]
[1756638495705,0.22466,4451.8,4450.6,0.227]
[1756638495914,0.2994,4451.9,4450.6,0.227]
[1756638496115,0.2994,4451.7,4450.6,0.227]
[1756638496714,0.52406,4451.7,4450.6,0.227]
[1756638497820,0.2994,4451.7,4450.6,0.227]
[1756638502926,3.2078,4452.0,4450.7,0.226]
[1756638503126,0.2994,4451.8,4450.7,0.226]
[1756638507432,3.2078,4452.0,4450.6,2.01668934]
[1756638507633,0.2994,4451.8,4450.7,0.226]
[1756638508032,3.2078,4451.5,4450.7,0.226]
[1756638508334,0.2994,4451.4,4450.7,0.226]
[1756638510832,3.2078,4451.5,4450.6,2.01668934]
[1756638511032,0.2994,4451.4,4450.7,0.226]
[1756638511931,3.2078,4451.5,4450.8,0.226]
[1756638512131,0.2994,4451.4,4450.8,0.226]
[1756638512733,0.4936,4450.9,4450.8,0.226]
[1756638516228,0.2994,4450.8,4450.7,2.01668934]
[1756638516535,0.4936,4450.4,4450.3,3.2078]
[1756638516734,0.4936,4450.4,4450.3,3.4338]
[1756638520232,0.4936,4450.4,4450.3,0.226]
[1756638526036,0.2931,4450.3,4449.9,32.355]
[1756638526234,0.4936,4450.1,4450.0,0.226]
[1756638526535,0.2931,4450.0,4449.9,32.355]
[1756638526737,0.2931,4450.0,4449.9,32.581]
[1756638529133,0.4936,4450.0,4449.9,0.226]
[1756638533037,0.4936,4449.8,4449.7,0.226]
[1756638533236,0.4936,4449.8,4449.3,3.2078]
[1756638533439,0.2005,4449.4,4449.3,3.2078]
[1756638533732,0.4936,4449.4,4449.3,0.226]
[1756638533932,0.4936,4449.4,4448.8,3.2078]
[1756638533933,0.2931,4449.3,4449.2,0.226]
[1756638534131,0.4936,4449.3,4449.2,0.226]
[1756638535637,0.4936,4449.3,4448.3,2.01668934]
[1756638535638,0.4936,4448.4,4448.3,0.2002]
[1756638535843,3.2078,4448.7,4448.6,0.2002]
[1756638536039,3.7014,4448.7,4448.6,0.4845]
[1756638536542,0.2005,4448.2,4448.1,0.227]
[1756638536743,0.4936,4448.2,4448.1,0.7115]
[1756638537936,0.4936,4448.2,4448.1,0.227]
[1756638538141,0.2931,4447.5,4447.1,0.2843]
[1756638538340,0.4936,4447.2,4447.1,0.7115]
[1756638538740,0.4936,4447.6,4447.5,0.4845]
[1756638540336,0.4936,4447.6,4447.2,0.2843]
[1756638540540,0.4936,4447.1,4447.0,3.6923]
[1756638540737,0.4936,4447.1,4447.0,3.9193]
[1756638541749,0.4936,4447.1,4447.0,3.6923]
[1756638541943,0.4936,4447.1,4447.0,3.9193]
[1756638543341,0.4936,4447.1,4447.0,3.6923]
[1756638543644,0.4936,4447.1,4447.0,3.9203]
[1756638544353,0.2931,4448.1,4447.1,0.2843]
[1756638548557,0.4936,4448.1,4448.0,0.5034]
[1756638548753,0.4936,4448.1,4448.0,0.2002]
[1756638549456,0.4936,4448.1,4448.0,0.5034]
[1756638560164,0.4936,4448.1,4447.6,0.3032]
[1756638560664,0.4936,4448.1,4447.5,0.115]
[1756638560965,0.2005,4448.1,4447.2,0.227]
[1756638561162,0.2885,4448.0,4447.2,0.227]
[1756638561361,3.2078,4448.2,4447.3,0.22484]
[1756638561664,0.4722,4448.1,4448.0,0.1971]
[1756638561865,0.4722,4448.1,4447.4,0.3032]
[1756638564868,0.2885,4447.9,4447.4,0.3032]
[1756638565062,0.4722,4447.9,4447.8,0.1971]
[1756638565267,0.4722,4447.9,4447.8,0.5003]
[1756638568767,0.1837,4447.3,4447.2,0.4241]
[1756638568970,0.4722,4447.3,4447.2,0.7273]
[1756638570565,0.1124,4448.0,4447.3,0.3032]
[1756638570770,0.2885,4447.9,4447.3,0.3032]
[1756638571566,0.1124,4448.0,4447.8,0.5003]
[1756638571772,0.4009,4448.0,4447.9,0.5003]
[1756638572675,0.1124,4448.0,4447.9,0.5003]
[1756638574773,0.1124,4448.0,4447.9,0.7273]
[1756638575570,0.4009,4448.0,4447.9,0.7273]
[1756638579277,0.3946,4448.0,4447.9,0.7273]
[1756638580582,0.5808,4448.0,4447.9,0.7273]
[1756638588882,0.4684,4448.0,4447.9,0.7273]
[1756638594088,0.4684,4448.0,4447.5,3.2078]
[1756638594288,0.4684,4447.7,4447.6,0.7203]
[1756638598795,0.4684,4447.7,4447.6,0.4278]
[1756638598989,0.4684,4447.7,4447.6,0.7203]
[1756638599290,0.4684,4447.7,4447.6,0.4933]
[1756638599493,0.4684,4447.7,4447.6,0.7203]
[1756638600297,0.4684,4447.7,4447.6,0.4933]
[1756638600502,0.4684,4447.7,4447.6,0.7203]
[1756638605897,3.3202,4448.2,4447.7,0.2925]
[1756638606201,0.4684,4448.1,4448.0,0.4933]
[1756638606401,0.4684,4448.1,4448.0,0.7203]
[1756638606602,0.4684,4448.1,4448.0,0.4278]
[1756638606900,0.4684,4448.1,4448.0,0.227]
[1756638608800,0.4684,4448.1,4448.0,0.7296]
[1756638630320,0.1124,4448.3,4448.0,0.7296]
[1756638630520,0.1124,4448.3,4448.2,0.5026]
[1756638632319,0.2025,4448.0,4447.8,2.01668934]
[1756638632625,0.4866,4447.9,4447.8,0.7296]
[1756638634619,0.4866,4447.9,4447.8,0.5026]
[1756638634817,0.4866,4447.9,4447.8,0.7296]
[1756638642139,0.1124,4448.1,4447.9,0.2917]
[1756638642439,0.1124,4448.1,4448.0,0.4782]
[1756638645139,0.2838,4448.9,4448.8,0.1865]
[1756638645438,0.4853,4448.9,4448.8,0.227]
[1756638647942,0.4853,4448.9,4448.5,0.1924]
[1756638648142,0.2838,4448.8,4448.7,0.1924]
[1756638648343,0.4853,4448.8,4448.7,0.1924]
[1756638648543,0.4853,4448.8,4448.7,0.36843148]
[1756638651143,0.4853,4448.8,4448.0,3.2078]
[1756638651144,0.2015,4448.2,4448.1,0.3684]
[1756638651344,0.4853,4448.2,4448.1,0.3684]
[1756638652746,0.4853,4448.2,4447.4,3.2078]
[1756638652941,0.2015,4447.6,4447.5,0.5954]
[1756638653138,0.4853,4447.6,4447.5,0.5954]
[1756638654649,0.4853,4447.6,4447.5,0.3684]
[1756638654946,0.4853,4447.6,4447.5,0.227]
[1756638656050,0.2015,4447.6,4447.0,0.1819]
[1756638656253,0.2015,4447.1,4447.0,0.3684]
[1756638656552,0.4853,4447.1,4447.0,0.5954]
[1756638664260,0.2838,4447.1,4447.0,0.5954]
[1756638664454,0.4853,4447.1,4447.0,0.5954]
[1756638667654,0.4853,4447.1,4447.0,0.3684]
[1756638667856,0.4853,4447.1,4447.0,0.5954]
[1756638678656,3.2078,4447.9,4447.0,0.4135]
[1756638678862,0.4738,4447.8,4447.7,0.3725]
[1756638679066,0.4738,4447.8,4447.7,0.5995]
[1756638695489,0.2864,4447.8,4447.7,0.5995]
[1756638697480,3.2078,4448.9,4447.8,0.1823]
[1756638697680,0.51120001,4448.8,4447.8,0.1823]
[1756638698185,0.22480001,4448.7,4447.8,0.1823]
[1756638698385,0.22481,4448.6,4447.8,0.1823]
[1756638698586,0.3046,4448.5,4447.8,0.1823]
[1756638700080,0.5058,4447.9,4447.8,0.3688]
[1756638704488,0.3046,4447.9,4447.8,0.3688]
[1756638704789,0.3046,4448.8,4447.9,0.1822]
[1756638704989,0.3046,4448.8,4448.0,0.227]
[1756638705185,0.3046,4448.8,4448.1,0.1822]
[1756638705494,0.5058,4448.2,4448.1,0.3687]
[1756638709487,0.3046,4448.2,4448.1,0.3687]
[1756638710988,3.2078,4448.9,4448.1,0.3687]
[1756638711188,0.3046,4448.8,4448.2,0.1822]
[1756638711390,0.2012,4448.4,4448.3,0.5957]
[1756638711689,0.5058,4448.4,4448.3,0.5957]
[1756638717396,0.3046,4448.4,4448.3,0.5957]
[1756638717898,0.3046,4448.4,4448.3,2.61238934]
[1756638719490,0.3046,4448.4,4448.3,0.5957]
[1756638720089,0.5058,4448.4,4448.3,0.5957]
[1756638720493,0.3046,4449.0,4448.3,4.8205]
[1756638720801,3.2078,4449.9,4449.0,0.276]
[1756638720997,0.2012,4449.1,4449.0,2.47918934]
[1756638721193,3.409,4449.1,4449.0,2.01668934]
[1756638721389,7.409,4449.1,4449.0,0.226]
[1756638721594,7.63377,4449.1,4449.0,0.226]
[1756638721801,7.409,4449.1,4449.0,0.226]
[1756638722301,7.63377,4449.1,4448.4,32.375]
[1756638722597,0.3046,4448.9,4448.5,0.226]
[1756638722787,0.2012,4448.6,4448.5,0.226]
[1756638722995,0.5058,4448.6,4448.5,0.226]
[1756638723296,0.5058,4448.6,4448.4,32.375]
[1756638723502,0.3046,4448.5,4448.4,32.375]
[1756638723689,0.3046,4448.5,4448.4,32.601]
[1756638724500,0.3046,4448.5,4448.4,32.375]
[1756638724802,0.3046,4448.5,4448.4,32.601]
[1756638725403,2.955257,4448.5,4448.4,32.601]
[1756638725604,2.955257,4448.5,4448.4,32.877]
[1756638730210,3.156457,4448.5,4448.4,0.6885]
[1756638731505,0.2956,4448.2,4447.9,2.01668934]
[1756638731707,0.4883,4448.0,4447.9,0.2821]
[1756638732509,0.4883,4448.0,4447.5,32.374]
[1756638732510,0.4883,4447.8,4447.5,32.374]
[1756638732715,0.2956,4447.7,4447.6,0.226]
[1756638732909,0.2956,4447.6,4447.0,3.2078]
[1756638733216,0.4883,4447.1,4446.5,2.01668934]
[1756638733510,0.1927,4446.7,4446.6,0.4241]
[1756638733817,0.4883,4446.7,4446.6,0.4241]
[1756638734014,0.4883,4446.7,4446.6,0.7062]
[1756638735915,0.2956,4447.5,4446.7,0.2821]
[1756638736113,0.2956,4447.5,4446.8,0.226]
[1756638736517,0.1927,4447.0,4446.9,0.4802]
[1756638736814,0.4883,4447.0,4446.9,0.4802]
[1756638737819,3.2078,4447.6,4446.9,0.4802]
[1756638738006,0.4883,4447.5,4447.4,0.4802]
[1756638738212,3.2078,4448.2,4447.4,0.7062]
[1756638738514,0.4883,4447.6,4447.5,0.226]
[1756638739410,0.1927,4447.6,4446.9,0.2821]
[1756638739617,0.2956,4447.5,4447.0,0.226]
[1756638739811,0.2956,4448.0,4447.1,0.2821]
[1756638740007,0.4883,4447.2,4447.1,0.4802]
[1756638740210,0.4883,4447.2,4447.1,0.7062]
[1756638741214,0.1927,4447.2,4447.1,0.4802]
[1756638741409,0.4883,4447.2,4447.1,0.7062]
[1756638746216,0.4883,4447.2,4447.1,0.4802]
[1756638746418,0.4883,4447.2,4447.1,0.7072]
[1756638746717,0.4883,4447.2,4447.1,0.4802]
[1756638746920,0.4883,4447.2,4447.1,0.7072]
[1756638747718,0.4883,4447.2,4447.1,0.4802]
[1756638747922,0.4883,4447.2,4447.1,0.227]
[1756638748111,0.1927,4447.2,4447.1,0.227]
[1756638748317,0.4883,4447.2,4447.1,0.227]
[1756638749322,0.4883,4447.2,4446.8,3.2078]
[1756638749523,0.2956,4447.1,4446.9,0.227]
[1756638749723,0.4883,4447.0,4446.9,0.227]
[1756638750325,3.138957,4447.0,4446.9,0.227]
[1756638751123,3.138957,4447.0,4446.8,3.2078]
[1756638751318,0.4883,4446.9,4446.8,3.2078]